{"text_format":"2","workbook":"xlsx","n_sheets":1,"sheets":["Project_Демо-проект🚀"],"not_rendered":{"charts":0,"images":0,"macros":0,"external_links":0,"defined_names":0,"comments":0,"pivot_tables":0},"unopened":[],"bounds":{"document_bytes":16777216,"sheet_cells":100000,"run_cost":"one","rows_first":2000,"rows_last":500,"rows_between":2000,"halvings":0,"cell_chars":16384,"cell_head_chars":4096},"cells_cut":0,"cells_raw":0,"read":"whole","date_system":"1900"}

{"sheet":"Project_Демо-проект🚀","index":0,"n_rows":319,"n_cols":17,"rows_kept":319,"cut":false,"hidden":false,"merged":[]}
["ID","Расположение","Наименование","Автоматизирован","Предусловия","Шаги","Постусловия","Ожидаемый результат","Тестовые данные","Комментарии","Итерации","Приоритет","Статус","Дата создания","Автор","Длительность","Тег"]
["10","🚀 Demo",{"$f":"HYPERLINK(\"https://team-qyro.testit.software/projects/1/tests/10\", \"Авторизация в Test IT\")","v":null},"Нет","","","","","","","Login: User; Password: Qwerty_123;\nLogin: Tester; Password: Password_123;","Высокий","Готов","7/28/2025 09:23:24","Артемизий","0h 5m 0s","regression"]
["","","","","Перейти на страницу \"Проекты\"","","","Открыта страница \"Проекты\"","","","","","","","","",""]
["","","","","Нажать на кнопку создания проекта","","","Открыто модальное окно создания проекта","","","","","","","","",""]
["","","","","Заполнить все поля","","","Поля заполнены","","","","","","","","",""]
["","","","","Нажать кнопку \"Сохранить\"","","","Модальное окно закрыто. \nОткрыта страница с библиотекой тестовых сценариев. \nВ библиотеке отсутствуют тесты, отображается плейсхолдер с подсказкой","","","","","","","","",""]
["","","","","","Перейти на страницу авторизации Test IT","","Открыта страница авторизации Test IT","","","","","","","","",""]
["","","","","","Ввести %Login","","Отображается введённый логин","","","","","","","","",""]
["","","","","","Ввести %Password","","Отображается введённый пароль","","","","","","","","",""]
["","","","","","Нажать кнопку Войти","","Отображается модуль проектных областей","","","","","","","","",""]
["","","","","","","Удалить локального пользователя","","","","","","","","","",""]
["15","🚀 Demo -> Карточка WI",{"$f":"HYPERLINK(\"https://team-qyro.testit.software/projects/1/tests/15\", \"Просмотр изображения\")","v":null},"Нет","","","","","","","","Высокий","Готов","7/28/2025 09:23:24","Артемизий","0h 5m 0s","regression"]
["","","","","Перейти на страницу \"Проекты\"","","","Открыта страница \"Проекты\"","","","","","","","","",""]
["","","","","Нажать на кнопку создания проекта","","","Открыто модальное окно создания проекта","","","","","","","","",""]
["","","","","Заполнить все поля","","","Поля заполнены","","","","","","","","",""]
["","","","","Нажать кнопку \"Сохранить\"","","","Модальное окно закрыто. \nОткрыта страница с библиотекой тестовых сценариев. \nВ библиотеке отсутствуют тесты, отображается плейсхолдер с подсказкой","","","","","","","","",""]
["","","","","Перейти в библиотеку тестов","","","Открыта библиотека тестов","","","","","","","","",""]
["","","","","Нажать на кнопку создания нового WI, выбрать \"Тест-кейс\" или \"Чек-лист\"","","","Открыто модальное окно создания нового WI","","","","","","","","",""]
["","","","","Заполнить необходимые поля","","","Поля заполнены","","","","","","","","",""]
["","","","","Нажать на кнопку \"Сохранить\"","","","Модальное окно закрыто.\nСозданный WI отображается в библиотеке","","","","","","","","",""]
["","","","","","Добавить шаг в тест кейс","","Шаг добавлен, фокус на области редактирования","","","","","","","","",""]
["","","","","","Добавить изображение в формате PNG в шаг","","Изображение добавлено","","","","","","","","",""]
["","","","","","Навести курсор на изображение","","По бокам изображения появились синие маркеры\nПоверх изображения появились иконки лупы и корзины","","","","","","","","",""]
["","","","","","Кликнуть на иконку лупы","","Открыт режим просмотра изображения - в центре экрана появляется изображение в полном размере","","","","","","","","",""]
["","","","","","Проверить опции режима просмотра:\n•  Поворот по часовой стрелке\n\n•  Поворот против часовой стрелки\n\n•  Увеличение\n\n•  Уменьшение","","Изображение вращается, увеличивается, уменьшается","","","","","","","","",""]
["","","","","","Кликнуть на крестик в режиме просмотра","","Режим просмотра закрыт","","","","","","","","",""]
["","","","","","Кликнуть на иконку лупы","","Открыт режим просмотра изображения","","","","","","","","",""]
["","","","","","Кликнуть на свободное поле вне изображения","","Режим просмотра закрыт","","","","","","","","",""]
["","","","","","Повторить шаги 2-4 с изображениями в формате GIF и JPG","","Аналогично результатам шагов 2-4","","","","","","","","",""]
["22","🚀 Demo -> Карточка WI",{"$f":"HYPERLINK(\"https://team-qyro.testit.software/projects/1/tests/22\", \"Отображение изображения при ресайзе\")","v":null},"Нет","","","","","","","","Высокий","Готов","7/28/2025 09:23:24","Артемизий","0h 5m 0s","regression"]
["","","","","Перейти на страницу \"Проекты\"","","","Открыта страница \"Проекты\"","","","","","","","","",""]
["","","","","Нажать на кнопку создания проекта","","","Открыто модальное окно создания проекта","","","","","","","","",""]
["","","","","Заполнить все поля","","","Поля заполнены","","","","","","","","",""]
["","","","","Нажать кнопку \"Сохранить\"","","","Модальное окно закрыто. \nОткрыта страница с библиотекой тестовых сценариев. \nВ библиотеке отсутствуют тесты, отображается плейсхолдер с подсказкой","","","","","","","","",""]
["","","","","Перейти в библиотеку тестов","","","Открыта библиотека тестов","","","","","","","","",""]
["","","","","Нажать на кнопку создания нового WI, выбрать \"Тест-кейс\" или \"Чек-лист\"","","","Открыто модальное окно создания нового WI","","","","","","","","",""]
["","","","","Заполнить необходимые поля","","","Поля заполнены","","","","","","","","",""]
["","","","","Нажать на кнопку \"Сохранить\"","","","Модальное окно закрыто.\nСозданный WI отображается в библиотеке","","","","","","","","",""]
["","","","","","Добавить шаг в тест кейс","","Шаг добавлен, фокус на области редактирования","","","","","","","","",""]
["","","","","","Добавить изображение в формате PNG в шаг","","Изображение добавлено","","","","","","","","",""]
["","","","","","Уменьшить размер браузера до одной четверти экрана","","Ширина изображения уменьшилась вместе с уменьшением ширины колонки шага. По высоте изображение уменьшилось пропорционально своей ширине. Изображение не обрезается ни по одному направлению.","","","","","","","","",""]
["","","","","","Повторить шаг 3 с изображениями в формате GIF и JPG","","Аналогично результату шага 3","","","","","","","","",""]
["24","🚀 Demo -> Карточка WI",{"$f":"HYPERLINK(\"https://team-qyro.testit.software/projects/1/tests/24\", \"Редактор текста (цвет текста и фона)\")","v":null},"Нет","","","","","","","","Высокий","Готов","7/28/2025 09:23:24","Артемизий","0h 5m 0s","regression"]
["","","","","Перейти на страницу \"Проекты\"","","","Открыта страница \"Проекты\"","","","","","","","","",""]
["","","","","Нажать на кнопку создания проекта","","","Открыто модальное окно создания проекта","","","","","","","","",""]
["","","","","Заполнить все поля","","","Поля заполнены","","","","","","","","",""]
["","","","","Нажать кнопку \"Сохранить\"","","","Модальное окно закрыто. \nОткрыта страница с библиотекой тестовых сценариев. \nВ библиотеке отсутствуют тесты, отображается плейсхолдер с подсказкой","","","","","","","","",""]
["","","","","Перейти в библиотеку тестов","","","Открыта библиотека тестов","","","","","","","","",""]
["","","","","Нажать на кнопку создания нового WI, выбрать \"Тест-кейс\" или \"Чек-лист\"","","","Открыто модальное окно создания нового WI","","","","","","","","",""]
["","","","","Заполнить необходимые поля","","","Поля заполнены","","","","","","","","",""]
["","","","","Нажать на кнопку \"Сохранить\"","","","Модальное окно закрыто.\nСозданный WI отображается в библиотеке","","","","","","","","",""]
["","","","","","Кликнуть на кнопку \"Цвет текста\"","","Открывается меню выбора цвета:","","","","","","","","",""]
["","","","","","Кликнуть на любой цвет в меню","","Меню выбора цвета закрылось\nТекст изменил цвет на выбранный\nНа тулбаре появилась рамка у кнопки \"Цвет текста\"","","","","","","","","",""]
["","","","","","Отменить выбор цвета текста:\n•  Выделить тот же текст шага\n\n•  Кликнуть на кнопку \"Цвет текста\"\n\n•  Кликнуть на иконку кисточки","","Меню выбора цвета закрылось\nЦвет текста изменился на дефолтный\nНа тулбаре пропала рамка у кнопки \"Цвет текста\"","","","","","","","","",""]
["","","","","","Выделить текст шага\nКликнуть на кнопку \"Цвет фона\"","","Открывается меню выбора цвета:","","","","","","","","",""]
["","","","","","Кликнуть на любой цвет","","Меню выбора цвета закрылось\nТекст изменил цвет на выбранный\nНа тулбаре появилась рамка у кнопки \"Цвет фона\"","","","","","","","","",""]
["","","","","","Отменить выбор цвета фона:\n•  Выделить тот же текст шага\n\n•  Кликнуть на кнопку \"Цвет текста\"\n\n•  Кликнуть на иконку кисточки","","Открыто меню выбора цвета","","","","","","","","",""]
["","","","","","Выделить текст шага\nДобавить форматирование текста полужирный и курсив\nДобавить цвет и фон текста","","Все выбранное форматирование применилось к тексту\nУ всех выбранных кнопок на тулбаре есть рамка","","","","","","","","",""]
["25","🚀 Demo -> Карточка WI",{"$f":"HYPERLINK(\"https://team-qyro.testit.software/projects/1/tests/25\", \"Инструменты форматирования текста\")","v":null},"Нет","","","","","","","","Высокий","Готов","7/28/2025 09:23:24","Артемизий","0h 5m 0s","regression"]
["","","","","Перейти на страницу \"Проекты\"","","","Открыта страница \"Проекты\"","","","","","","","","",""]
["","","","","Нажать на кнопку создания проекта","","","Открыто модальное окно создания проекта","","","","","","","","",""]
["","","","","Заполнить все поля","","","Поля заполнены","","","","","","","","",""]
["","","","","Нажать кнопку \"Сохранить\"","","","Модальное окно закрыто. \nОткрыта страница с библиотекой тестовых сценариев. \nВ библиотеке отсутствуют тесты, отображается плейсхолдер с подсказкой","","","","","","","","",""]
["","","","","Перейти в библиотеку тестов","","","Открыта библиотека тестов","","","","","","","","",""]
["","","","","Нажать на кнопку создания нового WI, выбрать \"Тест-кейс\" или \"Чек-лист\"","","","Открыто модальное окно создания нового WI","","","","","","","","",""]
["","","","","Заполнить необходимые поля","","","Поля заполнены","","","","","","","","",""]
["","","","","Нажать на кнопку \"Сохранить\"","","","Модальное окно закрыто.\nСозданный WI отображается в библиотеке","","","","","","","","",""]
["","","","","","Открыть тест кейс\nПроверить инструменты форматирования таблиц","","Кнопки создания и форматирования таблиц отображаются на тулбаре","","","","","","","","",""]
["","","","","","Добавить шаг в тест кейс","","Шаг добавлен","","","","","","","","",""]
["","","","","","Проверить состояния кнопок","","Активны при клике на редактируемую область\n\nЗадизейблены при клике вне редактируемой области (в том числе и на саму кнопку):","","","","","","","","",""]
["","","","","","Проверить изменение состояний кнопок по ховеру","","Кнопки подсвечиваются при наведении курсора\nПоявляется тултип с названием кнопки\nТекст на тултипок корректный для каждой кнопки","","","","","","","","",""]
["","","","","","Проверить дефолтное форматирование текста","","На тулбаре выбрано только форматирование \"По левому краю\", рамка есть только у этой кнопки","","","","","","","","",""]
["26","🚀 Demo -> Карточка WI",{"$f":"HYPERLINK(\"https://team-qyro.testit.software/projects/1/tests/26\", \"Вывести на печать WI с таблицей\")","v":null},"Нет","","","","","","","","Высокий","Готов","7/28/2025 09:23:24","Артемизий","0h 5m 0s","regression"]
["","","","","Перейти на страницу \"Проекты\"","","","Открыта страница \"Проекты\"","","","","","","","","",""]
["","","","","Нажать на кнопку создания проекта","","","Открыто модальное окно создания проекта","","","","","","","","",""]
["","","","","Заполнить все поля","","","Поля заполнены","","","","","","","","",""]
["","","","","Нажать кнопку \"Сохранить\"","","","Модальное окно закрыто. \nОткрыта страница с библиотекой тестовых сценариев. \nВ библиотеке отсутствуют тесты, отображается плейсхолдер с подсказкой","","","","","","","","",""]
["","","","","Перейти в библиотеку тестов","","","Открыта библиотека тестов","","","","","","","","",""]
["","","","","Нажать на кнопку создания нового WI, выбрать \"Тест-кейс\" или \"Чек-лист\"","","","Открыто модальное окно создания нового WI","","","","","","","","",""]
["","","","","Заполнить необходимые поля","","","Поля заполнены","","","","","","","","",""]
["","","","","Нажать на кнопку \"Сохранить\"","","","Модальное окно закрыто.\nСозданный WI отображается в библиотеке","","","","","","","","",""]
["","","","","","Добавить в шаг тест кейса текст и таблицу под ним\nЗаполнить таблицу \nСохранить","","Шаг заполнен текстом и таблицей с текстом в ячейках","","","","","","","","",""]
["","","","","","Выбрать созданный WI","","WI выбран","","","","","","","","",""]
["","","","","","Нажать на Print","","Открывается новая вкладка с формой с html представлением выбранного WI (без хедера Test IT)\nТаблица отображается в шаге с новой строки (не приклеивается к тексту)","","","","","","","","",""]
["8","🚀 Demo -> Тесты",{"$f":"HYPERLINK(\"https://team-qyro.testit.software/projects/1/tests/8\", \"Наличие всех типов ссылок и типы по умолчанию\")","v":null},"Нет","","","","","","","","Низкий","Не готов","7/28/2025 09:23:24","Артемизий","0h 5m 0s","smoke"]
["","","","","","Добавить ссылку, открыть настройки ссылки","","При добавлении ссылки в WI, ссылка не содержит предустановленного типа﻿\nПрисутствует 6 допустимых типов:","","","","","","","","",""]
["","","","","","Создать 7 ссылок и проставить все 6 типов","","Все типы содержат соответствующую иконку\nСсылка без типа не содержит иконку","","","","","","","","",""]
["16","🚀 Demo -> Тесты",{"$f":"HYPERLINK(\"https://team-qyro.testit.software/projects/1/tests/16\", \"Наличие всех типов ссылок и типы по умолчанию\")","v":null},"Нет","","","","","","","","Средний","Не готов","7/28/2025 09:23:24","Артемизий","0h 5m 0s",""]
["","","","","Перейти в библиотеку тестов","","","Открыта библиотека тестов","","","","","","","","",""]
["","","","","Нажать на кнопку создания нового WI, выбрать \"Тест-кейс\" или \"Чек-лист\"","","","Открыто модальное окно создания нового WI","","","","","","","","",""]
["","","","","Заполнить необходимые поля","","","Поля заполнены","","","","","","","","",""]
["","","","","Нажать на кнопку \"Сохранить\"","","","Модальное окно закрыто.\nСозданный WI отображается в библиотеке","","","","","","","","",""]
["","","","","","Добавить ссылку, открыть настройки ссылки, раздел  Type","","При добавлении ссылки в WI, ссылка не содержит предустановленного типа\nПрисутствует 6 допустимых типов:\n1. Related\n2. Blocked by\n3. Defect\n4. Issue\n5. Requirement\n6. Repository\n+1 - none, не установленный тип","","","","","","","","",""]
["","","","","","Создать 7 ссылок и проставить все 6 типов + 1 ссылка без типа","","Все типы содержат соответствующую иконку\nСсылка без типа не содержит иконку","","","","","","","","",""]
["6","🚀 Demo -> Тесты -> WI",{"$f":"HYPERLINK(\"https://team-qyro.testit.software/projects/1/tests/6\", \"Проверка интерфейса карточки\")","v":null},"Нет","","","","","","","","Средний","Не готов","7/28/2025 09:23:24","Артемизий","0h 5m 0s","smoke"]
["","","","","Перейти на страницу \"Проекты\"","","","Открыта страница \"Проекты\"","","","","","","","","",""]
["","","","","Нажать на кнопку создания проекта","","","Открыто модальное окно создания проекта","","","","","","","","",""]
["","","","","Заполнить все поля","","","Поля заполнены","","","","","","","","",""]
["","","","","Нажать кнопку \"Сохранить\"","","","Модальное окно закрыто. \nОткрыта страница с библиотекой тестовых сценариев. \nВ библиотеке отсутствуют тесты, отображается плейсхолдер с подсказкой","","","","","","","","",""]
["","","","","","","","","","","","","","","","",""]
["","","","","","Открыть карточку на редактирование","","","","","","","","","","",""]
["","","","","","Свернуть-развернуть левое боковое меню","","Галочка сворачивания отображается только при наведении курсора в область меню, галочка разворачивания отображается всегда\nПри сворачивании отображаются только значки разделов, при наведении отображается подсказка (реализация в https://testit-tms.atlassian.net/browse/TES-22936)","","","","","","","","",""]
["","","","","","Свернуть-развернуть правое боковое меню","","Галочка сворачивания-разворачивания отображается всегда\nМеню сворачивается полностью без подсказок, оставляя небольшую видимую область и галочку разворачивания","","В текущем дизайне, галочка отображается не всегда.","","","","","","",""]
["","","","","","В шапке справа от названия отображается карусель переходов: счетчик цифр через \"/\" и кнопки переходов","","Слева отображается число какое место занимает карточка по порядку, справа общее число кейсов","","","","","","","","",""]
["","","","","","Переключиться на следующий кейс","","Отображается следующая карточка по списку\nСчетчик текущей карточки увеличился на 1, счетчик общего списка не изменился","","","","","","","","",""]
["","","","","","Переключиться на предыдущий кейс","","Отображается предыдущая карточка по списку\nСчетчик текущей карточки уменьшился на 1, счетчик общего списка не изменился","","","","","","","","",""]
["13","🚀 Demo -> Тесты -> WI",{"$f":"HYPERLINK(\"https://team-qyro.testit.software/projects/1/tests/13\", \"Поиск WI по имени в изолированной секции\")","v":null},"Нет","","","","","","","","Средний","Не готов","7/28/2025 09:23:24","Артемизий","0h 5m 0s","smoke"]
["","","","","Перейти на страницу \"Проекты\"","","","Открыта страница \"Проекты\"","","","","","","","","",""]
["","","","","Нажать на кнопку создания проекта","","","Открыто модальное окно создания проекта","","","","","","","","",""]
["","","","","Заполнить все поля","","","Поля заполнены","","","","","","","","",""]
["","","","","Нажать кнопку \"Сохранить\"","","","Модальное окно закрыто. \nОткрыта страница с библиотекой тестовых сценариев. \nВ библиотеке отсутствуют тесты, отображается плейсхолдер с подсказкой","","","","","","","","",""]
["","","","","","Перейти в секцию созданную на шаге 2 test precondition","","Секция изолирована","","","","","","","","",""]
["","","","","","В строке фильтра колонки \"Название\" ввести имя тест-кейса созданного на шаге 2  test precondition","","В библиотеке отображается WI, название которого идентично названию, введенному в поисковую строку","","","","","","","","",""]
["23","🚀 Demo -> Тесты -> WI",{"$f":"HYPERLINK(\"https://team-qyro.testit.software/projects/1/tests/23\", \"Сортировка WI пользовательскими атрибутами в библиотеке тестов\")","v":null},"Нет","","","","","","","","Средний","Не готов","7/28/2025 09:23:24","Артемизий","0h 5m 0s","smoke"]
["","","","","Перейти на страницу \"Проекты\"","","","Открыта страница \"Проекты\"","","","","","","","","",""]
["","","","","Нажать на кнопку создания проекта","","","Открыто модальное окно создания проекта","","","","","","","","",""]
["","","","","Заполнить все поля","","","Поля заполнены","","","","","","","","",""]
["","","","","Нажать кнопку \"Сохранить\"","","","Модальное окно закрыто. \nОткрыта страница с библиотекой тестовых сценариев. \nВ библиотеке отсутствуют тесты, отображается плейсхолдер с подсказкой","","","","","","","","",""]
["","","","","","Вывести пользовательские атрибуты в таблицу","","Все пользовательские атрибуты выведены, в колонках отображаются значения, которые содержатся в атрибутах","","","","","","","","",""]
["","","","","","Отсортировать все пользовательские атрибуту (asc/desc)","","Поля сортируются в алфавитном порядке","","","","","","","","",""]
["5","🚀 Demo -> Тесты -> WI -> Создание WI -> Версии WI",{"$f":"HYPERLINK(\"https://team-qyro.testit.software/projects/1/tests/5\", \"Выпадающий список \"\"Выберите версию\"\"\")","v":null},"Нет","","","","","","","","Средний","Не готов","7/28/2025 09:23:24","Артемизий","0h 5m 0s",""]
["","","","","Перейти на страницу \"Проекты\"","","","Открыта страница \"Проекты\"","","","","","","","","",""]
["","","","","Нажать на кнопку создания проекта","","","Открыто модальное окно создания проекта","","","","","","","","",""]
["","","","","Заполнить все поля","","","Поля заполнены","","","","","","","","",""]
["","","","","Нажать кнопку \"Сохранить\"","","","Модальное окно закрыто. \nОткрыта страница с библиотекой тестовых сценариев. \nВ библиотеке отсутствуют тесты, отображается плейсхолдер с подсказкой","","","","","","","","",""]
["","","","","Перейти в библиотеку тестов","","","Открыта библиотека тестов","","","","","","","","",""]
["","","","","Нажать на кнопку создания нового WI, выбрать \"Тест-кейс\" или \"Чек-лист\"","","","Открыто модальное окно создания нового WI","","","","","","","","",""]
["","","","","Заполнить необходимые поля","","","Поля заполнены","","","","","","","","",""]
["","","","","Нажать на кнопку \"Сохранить\"","","","Модальное окно закрыто.\nСозданный WI отображается в библиотеке","","","","","","","","",""]
["","","","","","Нажать на выпадающий список  \"Выбрать версию\"","","Открылся выпадающий список, содержащий версии WI","","","","","","","","",""]
["","","","","","Проверить порядок следования версий WI","","1) Лейбл с первой версией (v.1) должен находиться внизу списка\n2) Самая поздняя по времени создания версия должна находиться вверху списка\n3) Рядом с лейблом версии указано имя создавшего ее пользователя и аватарка\n4) Последняя версия WI в списке должна быть указана в цифровой форме","","","","","","","","",""]
["11","🚀 Demo -> Тесты -> WI -> Создание WI -> Версии WI",{"$f":"HYPERLINK(\"https://team-qyro.testit.software/projects/1/tests/11\", \"Лейбл с номером версии в карточке WI\")","v":null},"Нет","","","","","","","","Средний","Не готов","7/28/2025 09:23:24","Артемизий","0h 5m 0s",""]
["","","","","Перейти на страницу \"Проекты\"","","","Открыта страница \"Проекты\"","","","","","","","","",""]
["","","","","Нажать на кнопку создания проекта","","","Открыто модальное окно создания проекта","","","","","","","","",""]
["","","","","Заполнить все поля","","","Поля заполнены","","","","","","","","",""]
["","","","","Нажать кнопку \"Сохранить\"","","","Модальное окно закрыто. \nОткрыта страница с библиотекой тестовых сценариев. \nВ библиотеке отсутствуют тесты, отображается плейсхолдер с подсказкой","","","","","","","","",""]
["","","","","Перейти в библиотеку тестов","","","Открыта библиотека тестов","","","","","","","","",""]
["","","","","Нажать на кнопку создания нового WI, выбрать \"Тест-кейс\" или \"Чек-лист\"","","","Открыто модальное окно создания нового WI","","","","","","","","",""]
["","","","","Заполнить необходимые поля","","","Поля заполнены","","","","","","","","",""]
["","","","","Нажать на кнопку \"Сохранить\"","","","Модальное окно закрыто.\nСозданный WI отображается в библиотеке","","","","","","","","",""]
["","","","","","Открыть карточку WI","","По умолчанию открывается последняя версия WI","","","","","","","","",""]
["","","","","","Выбрать в выпадающем списке \"Выбрать версию\" любую другую версию WI","","Лейбл изменился, равен номеру выбранной версии","","","","","","","","",""]
["19","🚀 Demo -> Тесты -> WI -> Создание WI -> Версии WI",{"$f":"HYPERLINK(\"https://team-qyro.testit.software/projects/1/tests/19\", \"Нельзя внести изменения в предыдущие версии WI\")","v":null},"Нет","","","","","","","","Средний","Не готов","7/28/2025 09:23:24","Артемизий","0h 5m 0s",""]
["","","","","Перейти на страницу \"Проекты\"","","","Открыта страница \"Проекты\"","","","","","","","","",""]
["","","","","Нажать на кнопку создания проекта","","","Открыто модальное окно создания проекта","","","","","","","","",""]
["","","","","Заполнить все поля","","","Поля заполнены","","","","","","","","",""]
["","","","","Нажать кнопку \"Сохранить\"","","","Модальное окно закрыто. \nОткрыта страница с библиотекой тестовых сценариев. \nВ библиотеке отсутствуют тесты, отображается плейсхолдер с подсказкой","","","","","","","","",""]
["","","","","Перейти в библиотеку тестов","","","Открыта библиотека тестов","","","","","","","","",""]
["","","","","Нажать на кнопку создания нового WI, выбрать \"Тест-кейс\" или \"Чек-лист\"","","","Открыто модальное окно создания нового WI","","","","","","","","",""]
["","","","","Заполнить необходимые поля","","","Поля заполнены","","","","","","","","",""]
["","","","","Нажать на кнопку \"Сохранить\"","","","Модальное окно закрыто.\nСозданный WI отображается в библиотеке","","","","","","","","",""]
["","","","","","Открыть карточку WI.","","модальное окно WI открыто.","","","","","","","","",""]
["","","","","","Выбрать предыдущую версию WI.","","открыта карточка WI предыдущей версии.","","","","","","","","",""]
["","","","","","Попытаться внести изменения в карточку: добавить/отредактировать шаг, добавить/удалить вложение, ссылку и т.п.","","Кнопка \"Сохранить\" неактивна. Рядом с номером версии иконка-предупреждение \"Сделать версию актуальной\". Карточку WI нельзя отредактировать","","","","","","","","",""]
["2","🚀 Demo -> Общие шаги",{"$f":"HYPERLINK(\"https://team-qyro.testit.software/projects/1/tests/2\", \"Создание проекта\")","v":null},"Нет","","","","","","","","Средний","Не готов","7/28/2025 09:23:22","Артемизий","0h 0m 0s",""]
["","","","","","Перейти на страницу \"Проекты\"","","Открыта страница \"Проекты\"","","","","","","","","",""]
["","","","","","Нажать на кнопку создания проекта","","Открыто модальное окно создания проекта","","","","","","","","",""]
["","","","","","Заполнить все поля","","Поля заполнены","","","","","","","","",""]
["","","","","","Нажать кнопку \"Сохранить\"","","Модальное окно закрыто. \nОткрыта страница с библиотекой тестовых сценариев. \nВ библиотеке отсутствуют тесты, отображается плейсхолдер с подсказкой","","","","","","","","",""]
["3","🚀 Demo -> Общие шаги",{"$f":"HYPERLINK(\"https://team-qyro.testit.software/projects/1/tests/3\", \"Создание тест-кейса/чек-листа\")","v":null},"Нет","","","","","","","","Средний","Не готов","7/28/2025 09:23:22","Артемизий","0h 0m 0s",""]
["","","","","","Перейти в библиотеку тестов","","Открыта библиотека тестов","","","","","","","","",""]
["","","","","","Нажать на кнопку создания нового WI, выбрать \"Тест-кейс\" или \"Чек-лист\"","","Открыто модальное окно создания нового WI","","","","","","","","",""]
["","","","","","Заполнить необходимые поля","","Поля заполнены","","","","","","","","",""]
["","","","","","Нажать на кнопку \"Сохранить\"","","Модальное окно закрыто.\nСозданный WI отображается в библиотеке","","","","","","","","",""]
["9","🚀 Demo -> Импорт/Экспорт -> Импорт/Экспорт проекта через XLSX",{"$f":"HYPERLINK(\"https://team-qyro.testit.software/projects/1/tests/9\", \"Маппинг фильтрованый столбцов xlsx с атрибутом \"\"Варианты на выбор\"\"\")","v":null},"Нет","","","","","","","","Средний","Не готов","7/28/2025 09:23:24","Артемизий","0h 5m 0s",""]
["","","","","Перейти на страницу \"Проекты\"","","","Открыта страница \"Проекты\"","","","","","","","","",""]
["","","","","Нажать на кнопку создания проекта","","","Открыто модальное окно создания проекта","","","","","","","","",""]
["","","","","Заполнить все поля","","","Поля заполнены","","","","","","","","",""]
["","","","","Нажать кнопку \"Сохранить\"","","","Модальное окно закрыто. \nОткрыта страница с библиотекой тестовых сценариев. \nВ библиотеке отсутствуют тесты, отображается плейсхолдер с подсказкой","","","","","","","","",""]
["","","","","","Перейти в Настройки проекта, выбрать способ \"XLSX\"","","Открыто меню импорта библиотеки тестов через xlsx","","","","","","","","",""]
["","","","","","Загрузить файл xlsx с включенными фильтрами в столбцах, нажать \"Далее\"","","Произошел переход к шагу маппинга полей","","","","","","","","",""]
["","","","","","Смаппить поля \"Название\" и \"Варианты на выбор\" с соответствующими полями в XLSX\nНажать Далее","","Произошел переход к шагу маппинга значений из поля xlsx с значениями атрибута \"Варианты на выбор\"","","","","","","","","",""]
["","","","","","Смаппить значения из xlsx со значениями атрибута \"Варианты на выбор\"\nНажать Далее","","Произошел переход к шагу выбора секций","","","","","","","","",""]
["","","","","","Выбрать секцию, нажать Далее","","Импорт завершен без ошибок\nКейсы появились в библиотеке тестов\nЗначения полей корректно смаппились с указанными значениями их xlsx","","","","","","","","",""]
["14","🚀 Demo -> Импорт/Экспорт -> Импорт/Экспорт проекта через XLSX",{"$f":"HYPERLINK(\"https://team-qyro.testit.software/projects/1/tests/14\", \"Импорт из XLSX файла со значениями в формате \"\"dd.mm.yyyy. hh:mm\"\"\")","v":null},"Нет","","","","","","","","Средний","Не готов","7/28/2025 09:23:24","Артемизий","0h 5m 0s",""]
["","","","","Перейти на страницу \"Проекты\"","","","Открыта страница \"Проекты\"","","","","","","","","",""]
["","","","","Нажать на кнопку создания проекта","","","Открыто модальное окно создания проекта","","","","","","","","",""]
["","","","","Заполнить все поля","","","Поля заполнены","","","","","","","","",""]
["","","","","Нажать кнопку \"Сохранить\"","","","Модальное окно закрыто. \nОткрыта страница с библиотекой тестовых сценариев. \nВ библиотеке отсутствуют тесты, отображается плейсхолдер с подсказкой","","","","","","","","",""]
["","","","","","Перейти в настройки проекта / Импорт\nВыбрать импорт xlsx","","","","","","","","","","",""]
["","","","","","Смаппить минимально необходимое поле \"Название\" + атрибут дата со значениями формата \"dd.mm.yyyy. hh:mm\" в xlsx","","Поля помечены для маппинга","","","","","","","","",""]
["","","","","","Выбрать значения для маппинга атрибута Дата","","Значения распределены","","","","","","","","",""]
["","","","","","Выбрать секцию для импорта кейсов\nНажать \"Импортировать\"","","Секция выбрана\nИмпорт успешно завершен","","","","","","","","",""]
["","","","","","Открыть любой WI","","Поля смаппились корректно (так, как было указано в полях маппинга) \nЧасы и минуты в атрибуте \"Дата\" не отображаются","","","","","","","","",""]
["21","🚀 Demo -> Импорт/Экспорт -> Импорт/Экспорт проекта через XLSX",{"$f":"HYPERLINK(\"https://team-qyro.testit.software/projects/1/tests/21\", \"Ошибки маппинга некорректных значений в атрибут Дата\")","v":null},"Нет","","","","","","","","Средний","Не готов","7/28/2025 09:23:24","Артемизий","0h 5m 0s",""]
["","","","","Перейти на страницу \"Проекты\"","","","Открыта страница \"Проекты\"","","","","","","","","",""]
["","","","","Нажать на кнопку создания проекта","","","Открыто модальное окно создания проекта","","","","","","","","",""]
["","","","","Заполнить все поля","","","Поля заполнены","","","","","","","","",""]
["","","","","Нажать кнопку \"Сохранить\"","","","Модальное окно закрыто. \nОткрыта страница с библиотекой тестовых сценариев. \nВ библиотеке отсутствуют тесты, отображается плейсхолдер с подсказкой","","","","","","","","",""]
["","","","","","Взять файл импорта из аттачей данного кейса  \n\n\nПерейти в настройки проекта, начать XLSX импорт с данным файлом \n\n\nПоставить соответствие столбца с числами (\"Числа\") в атрибут Дата \n\n\nНачать импорт","","Начат импорт \n\n\nРезультат:  ошибка в таблице результатов импорта (attribute value is invalid)","","","","","","","","",""]
["","","","","","Повторить предыдущий шаг, смаппив строку с текстом  (\"Название\") с атрибутом Дата","","Начат импорт \nРезультат:  ошибка в таблице результатов импорта (attribute value is invalid)","","","","","","","","",""]
["27","🚀 Demo -> Импорт/Экспорт -> Импорт/Экспорт проекта через XLSX",{"$f":"HYPERLINK(\"https://team-qyro.testit.software/projects/1/tests/27\", \"Импорт xlsx с процентными значениями в ячейках\")","v":null},"Нет","","","","","","","","Средний","Не готов","7/28/2025 09:23:24","Артемизий","0h 5m 0s",""]
["","","","","Перейти на страницу \"Проекты\"","","","Открыта страница \"Проекты\"","","","","","","","","",""]
["","","","","Нажать на кнопку создания проекта","","","Открыто модальное окно создания проекта","","","","","","","","",""]
["","","","","Заполнить все поля","","","Поля заполнены","","","","","","","","",""]
["","","","","Нажать кнопку \"Сохранить\"","","","Модальное окно закрыто. \nОткрыта страница с библиотекой тестовых сценариев. \nВ библиотеке отсутствуют тесты, отображается плейсхолдер с подсказкой","","","","","","","","",""]
["","","","","","Перейти в настройки проекта - импорт XLSX\nНачать импорт с указанным в аттаче файле.\nСмаппить значение в процентах (первая строка) с полем \"Название\"\nПройти по шагам визарда до его закрытия","","Начат импорт","","","","","","","","",""]
["","","","","","Дождаться окончания импорта","","Импорт завершен с ошибкой \"The given key '0.86%' was not present in the dictionary\"","","","","","","","","",""]
["29","🚀 Demo -> Импорт/Экспорт -> Импорт/Экспорт проекта через XLSX",{"$f":"HYPERLINK(\"https://team-qyro.testit.software/projects/1/tests/29\", \"Импорт xlsx, начиная со строки, которой нет в документе\")","v":null},"Нет","","","","","","","","Средний","Не готов","7/28/2025 09:23:24","Артемизий","0h 5m 0s",""]
["","","","","Перейти на страницу \"Проекты\"","","","Открыта страница \"Проекты\"","","","","","","","","",""]
["","","","","Нажать на кнопку создания проекта","","","Открыто модальное окно создания проекта","","","","","","","","",""]
["","","","","Заполнить все поля","","","Поля заполнены","","","","","","","","",""]
["","","","","Нажать кнопку \"Сохранить\"","","","Модальное окно закрыто. \nОткрыта страница с библиотекой тестовых сценариев. \nВ библиотеке отсутствуют тесты, отображается плейсхолдер с подсказкой","","","","","","","","",""]
["","","","","","Перейти в настройки проекта - импорт - XLSX\n\n\nВзять файл из аттача кейса\n\n\nНа шаге №4 указать \"строку начала\" = 100\n\n\nПродолжить импорт, смаппив поле \"Название\" в TI с любым полем в документе","","Ошибка  \"Не найдены имена столбцов\"\n\n\nИмпорт не начат, пользователь остался на шаге №4 импорта","","","","","","","","",""]
["7","🚀 Demo -> Импорт/Экспорт -> Импорт/Экспорт проекта через XML",{"$f":"HYPERLINK(\"https://team-qyro.testit.software/projects/1/tests/7\", \"Import XML. Convert &quot; to \"\"\")","v":null},"Нет","","","","","","","","Средний","Не готов","7/28/2025 09:23:24","Артемизий","0h 5m 0s",""]
["","","","","Перейти на страницу \"Проекты\"","","","Открыта страница \"Проекты\"","","","","","","","","",""]
["","","","","Нажать на кнопку создания проекта","","","Открыто модальное окно создания проекта","","","","","","","","",""]
["","","","","Заполнить все поля","","","Поля заполнены","","","","","","","","",""]
["","","","","Нажать кнопку \"Сохранить\"","","","Модальное окно закрыто. \nОткрыта страница с библиотекой тестовых сценариев. \nВ библиотеке отсутствуют тесты, отображается плейсхолдер с подсказкой","","","","","","","","",""]
["","","","","","Перейти в настройки проекта - импорт - XML","","Открыт мастер импорта XML","","","","","","","","",""]
["","","","","","В мастере выбрать файл из аттача кейса \n\n\nОстальные шаги оставить дефолтными","","Импорт XML документа успешно завершен","","","","","","","","",""]
["","","","","","Перейти в библиотеку тестов \n\n\nОткрыть кейс  \"Quotes test \"test\"","","Имя и шаги кейса не содержат символов \"&quot;\"  , преобразованы в кавычки \"","","","","","","","","",""]
["17","🚀 Demo -> Импорт/Экспорт -> Импорт/Экспорт проекта через XML",{"$f":"HYPERLINK(\"https://team-qyro.testit.software/projects/1/tests/17\", \"Импорт кейсов без шагов с шаблоном Steps из TestRail\")","v":null},"Нет","","","","","","","","Средний","Не готов","7/28/2025 09:23:24","Артемизий","0h 5m 0s",""]
["","","","","Перейти на страницу \"Проекты\"","","","Открыта страница \"Проекты\"","","","","","","","","",""]
["","","","","Нажать на кнопку создания проекта","","","Открыто модальное окно создания проекта","","","","","","","","",""]
["","","","","Заполнить все поля","","","Поля заполнены","","","","","","","","",""]
["","","","","Нажать кнопку \"Сохранить\"","","","Модальное окно закрыто. \nОткрыта страница с библиотекой тестовых сценариев. \nВ библиотеке отсутствуют тесты, отображается плейсхолдер с подсказкой","","","","","","","","",""]
["","","","","В TestRail создать кейсы  с шаблоном Steps с пустыми шагами\nПримеры в аттаче \nЭкспортировать проект в XML","","","","","","","","","","","",""]
["","","","","","Перейти в настройки проекта / Импорт\nВыбрать XML\nЗагрузить XML из предусловий","","Импорт XML завершен","","","","","","","","",""]
["","","","","","Перейти в библиотеку тестов","","Проект импортировался корректно: \n•  Перенесены секции\n•  Созданы WI","","","","","","","","",""]
["20","🚀 Demo -> Импорт/Экспорт -> Импорт/Экспорт проекта через XML",{"$f":"HYPERLINK(\"https://team-qyro.testit.software/projects/1/tests/20\", \"Импорт аттачей разных форматов в шагах кейса и в самом кейсе\")","v":null},"Нет","","","","","","","","Средний","Не готов","7/28/2025 09:23:24","Артемизий","0h 5m 0s",""]
["","","","","Перейти на страницу \"Проекты\"","","","Открыта страница \"Проекты\"","","","","","","","","",""]
["","","","","Нажать на кнопку создания проекта","","","Открыто модальное окно создания проекта","","","","","","","","",""]
["","","","","Заполнить все поля","","","Поля заполнены","","","","","","","","",""]
["","","","","Нажать кнопку \"Сохранить\"","","","Модальное окно закрыто. \nОткрыта страница с библиотекой тестовых сценариев. \nВ библиотеке отсутствуют тесты, отображается плейсхолдер с подсказкой","","","","","","","","",""]
["","","","","","Перейти в настройки проекта / Импорт / xml","","Открыта \"шторка\" импорта кейса в xml","","","","","","","","",""]
["","","","","","Загрузить xml в область загрузки xml  \n\n\nВключить чекбокс \"Импортировать вложения\":  \n•  URL = адрес TR до \"?index.php\" (только корневой путь, пример https://g1titde.testrail.io)\n•  Логин = email, указанный при регистрации в TR\n•  Токен = API ключ, полученный в предусловии\n\n\nНажать \"Импортировать\"","","Начался процесс импорта кейсов с аттачами \n\n\nПрогресс отображается в виде прогрессбара","","Если параметры для импорта вложений были указаны неверно, TestIT не укажет на ошибку","","","","","","",""]
["","","","","","Дождаться 100% окончания загрузки","","Прогрессбар = 100%","","","","","","","","",""]
["","","","","","Выйти из настроек проекта \n\n\nОткрыть импортированный кейс","","В шагах кейса (Предусловия, Шаги, ОР) есть изображения того же размера, разрешения, имени и формата, что были в TR \n\n\nПорядок изображений сохранен, если их несколько в одном шаге \n\n\nВ аттачах WI загружены все файлы из кейса TR. Имя, размер и прочие параметры идентичны TR \n\n\nЕсли одно изображение в TR было и в шаге, и в аттаче, в TestIT выгружаются два файла: в шаг + аттач.  (в TR у файлов разные id)","","","","","","","","",""]
["31","🚀 Demo -> Импорт/Экспорт -> Импорт/Экспорт проекта через XML",{"$f":"HYPERLINK(\"https://team-qyro.testit.software/projects/1/tests/31\", \"Import Test Case (Steps)\")","v":null},"Нет","","","","","","","","Средний","Не готов","7/28/2025 09:23:24","Артемизий","0h 5m 0s",""]
["","","","","","Значение в поле Section импортировано в поле Секция","","","","","","","","","","",""]
["","","","","","Значение Template не импортировано","","","","","","","","","","",""]
["","","","","","Значение в поле Type импортировано в поле Type\n\n\nAcceptance -> Acceptance\nAccessibility Accessibility\nAutomated Automated\nCompatibility Compatibility,\nDestructive Destructive\nFunctional -> Functional\nOther -> Other\nPerformance Performance\nRegression Regression\nSecurity Security\nSmoke & Sanity Smoke & Sanity\nUsability Usability","","","","","","","","","","",""]
["","","","","","Значение в поле Priority импортировано в поле Приоритет","","","","","","","","","","",""]
["","","","","","Значение в поле Estimate импортировано в поле Время","","","","","","","","","","",""]
["","","","","","Значение в поле References импортировано в поле References","","","","","","","","","","",""]
["","","","","","Значение в поле Automation type всегда проставляется \"Не выбрано\"","","","","","","","","","","",""]
["","","","","","В описание добавляется комментарий, из какого кейса импортирован объект, например \"Imported from C27\"","","","","","","","","","","",""]
["","","","","","При добавлении XML с использованием АПИ ключа, аттачи добавляются корректно","","","","","","","","","","",""]
["","","","","","Данные и аттачи из полей Steps добавляются в соответствующие поля Шаги с сохранением последовательности","","","","","","","","","","",""]
["","","","","","Данные и аттачи из поля Preconditions добавлены в поле Предусловия теста","","","","","","","","","","",""]
["","","","","","Данные и аттачи из полей Expected result добавляются в соответствующие поля Ожидаемый результат соответственно шагам","","","","","","","","","","",""]
["32","🚀 Demo -> Импорт/Экспорт -> Импорт/Экспорт проекта через XML",{"$f":"HYPERLINK(\"https://team-qyro.testit.software/projects/1/tests/32\", \"Import TR Project with Multiple Suites\")","v":null},"Нет","","","","","","","","Средний","Не готов","7/28/2025 09:23:24","Артемизий","0h 5m 0s",""]
["","","","","","Создать проект с Multiple test suites  в TestRail","","","","","","","","","","",""]
["","","","","","Создать несколько Suites и в них создать тесты разных типов","","","","","","","","","","",""]
["","","","","","Получить необходимый XML через Export to XML (каждый suit выгружается/добавляется отдельным файлом)","","","","","","","","","","",""]
["","","","","","Импортировать проект через Импорт TestRail XML","","","","","","","","","","",""]
["","","","","","Создана секция с именем test suit без вложенных кейсов","","","","","","","","","","",""]
["","","","","","Секции и подсекции проекта в ТR с соответствующими тест-кейсами перенесены подсекциями в соответствии с исходной иерархией","","","","","","","","","","",""]
["","","","","","Импортировать проект повторно через Импорт TestRail XML","","","","","","","","","","",""]
["","","","","","Создана секция с секция с именем test suit и постфиксом (n)","","","","","","","","","","",""]
["4","🚀 Demo -> Импорт/Экспорт -> Импорт/Экспорт проекта через JSON",{"$f":"HYPERLINK(\"https://team-qyro.testit.software/projects/1/tests/4\", \"Импорт/экспорт с удаленными секциями и WI\")","v":null},"Нет","","","","","","","","Средний","Не готов","7/28/2025 09:23:24","Артемизий","0h 5m 0s",""]
["","","","","Перейти на страницу \"Проекты\"","","","Открыта страница \"Проекты\"","","","","","","","","",""]
["","","","","Нажать на кнопку создания проекта","","","Открыто модальное окно создания проекта","","","","","","","","",""]
["","","","","Заполнить все поля","","","Поля заполнены","","","","","","","","",""]
["","","","","Нажать кнопку \"Сохранить\"","","","Модальное окно закрыто. \nОткрыта страница с библиотекой тестовых сценариев. \nВ библиотеке отсутствуют тесты, отображается плейсхолдер с подсказкой","","","","","","","","",""]
["","","","","","На инстансе А","","","","","","","","","","",""]
["","","","","","Экспортировать проект методом POST api/v2/projects/id/export\nНе экспортировать аттачи\nЭкспорт всего проекта (тело запроса = \"{}\")","","Получен json файл с проектом","","","","","","","","",""]
["","","","","","На инстансе Б","","","","","","","","","","",""]
["","","","","","Импортировать проект методом POST api/v2/projects/import","","Создан новый проект с содержимым = проект инстанса А","","","","","","","","",""]
["","","","","","На инстансе А","","","","","","","","","","",""]
["","","","","","Удалить несколько WI из разных секций","","","","","","","","","","",""]
["","","","","","Экспортировать проект методом POST api/v2/projects/id/export\nНе экспортировать аттачи\nЭкспорт всего проекта (тело запроса = \"{}\")","","Получен json файл с проектом","","","","","","","","",""]
["","","","","","На инстансе Б","","","","","","","","","","",""]
["","","","","","Импортировать проект методом POST api/v2/projects/import","","Проект, созданный при первом импорте, не изменился. WI не удалены после повторного импорта\n\n\nНо если WI были \"удалены\" в архив, они  переместятся в архив. \nЕсли WI были удалены навсегда, из архива они не уходят","","","","","","","","",""]
["","","","","","На инстансе А","","","","","","","","","","",""]
["","","","","","Удалить несколько секций","","","","","","","","","","",""]
["","","","","","Экспортировать проект методом POST api/v2/projects/id/export\nНе экспортировать аттачи\nЭкспорт всего проекта (тело запроса = \"{}\")","","Получен json файл с проектом","","","","","","","","",""]
["","","","","","На инстансе Б","","","","","","","","","","",""]
["","","","","","Импортировать проект методом POST api/v2/projects/import","","Проект, созданный при первом импорте, не изменился. Секции не удалены после повторного импорта","","","","","","","","",""]
["12","🚀 Demo -> Импорт/Экспорт -> Импорт/Экспорт проекта через JSON",{"$f":"HYPERLINK(\"https://team-qyro.testit.software/projects/1/tests/12\", \"Экспорт/импорт проекта без аттачей\")","v":null},"Нет","","","","","","","","Средний","Не готов","7/28/2025 09:23:24","Артемизий","0h 5m 0s",""]
["","","","","Перейти на страницу \"Проекты\"","","","Открыта страница \"Проекты\"","","","","","","","","",""]
["","","","","Нажать на кнопку создания проекта","","","Открыто модальное окно создания проекта","","","","","","","","",""]
["","","","","Заполнить все поля","","","Поля заполнены","","","","","","","","",""]
["","","","","Нажать кнопку \"Сохранить\"","","","Модальное окно закрыто. \nОткрыта страница с библиотекой тестовых сценариев. \nВ библиотеке отсутствуют тесты, отображается плейсхолдер с подсказкой","","","","","","","","",""]
["","","","","","Экспорт/импорт производится на идентичных версиях продукта начиная с релиза ORION 2.3","","","","","","","","","","",""]
["","","","","","На инстансе 1","","","","","","","","","","",""]
["","","","","","Сделать экспорт проекта с WI, содержащими аттачи, и с выключенным параметром includeAttachments, воспользовавшись API - POST​/api​/v2​/projects​/{projectId}​/export","","Проект экспортирован\nПри выгрузке получен файл с именем типа: Test IT - {имя_проекта} - {id_тест-плана} - {datetime}\nКод ответа 200 Successful operation","","","","","","","","",""]
["","","","","","На инстансе 2","","","","","","","","","","",""]
["","","","","","Воспользовавшись API POST​/api​/v2​/projects​/import \nсделать импорт проекта","","Проект импортирован\nКод ответа 204 Successful operation","","","","","","","","",""]
["","","","","","В импортированном проекте открыть библиотеку тестов","","В списке тестов представлены WI, которые были добавлены на инстансе 1\nWI содержат название, описание, системные и пользовательские атрибуты, пред и пост условия, ссылки, общие шаги\nАттачи не подгружены","","","","","","","","",""]
["18","🚀 Demo -> Импорт/Экспорт -> Импорт/Экспорт проекта через JSON",{"$f":"HYPERLINK(\"https://team-qyro.testit.software/projects/1/tests/18\", \"Экспорт/импорт проекта с аттачами\")","v":null},"Нет","","","","","","","","Средний","Не готов","7/28/2025 09:23:24","Артемизий","0h 5m 0s",""]
["","","","","Перейти на страницу \"Проекты\"","","","Открыта страница \"Проекты\"","","","","","","","","",""]
["","","","","Нажать на кнопку создания проекта","","","Открыто модальное окно создания проекта","","","","","","","","",""]
["","","","","Заполнить все поля","","","Поля заполнены","","","","","","","","",""]
["","","","","Нажать кнопку \"Сохранить\"","","","Модальное окно закрыто. \nОткрыта страница с библиотекой тестовых сценариев. \nВ библиотеке отсутствуют тесты, отображается плейсхолдер с подсказкой","","","","","","","","",""]
["","","","","","Экспорт/импорт производится на идентичных версиях продукта начиная с релиза ORION 2.3","","","","","","","","","","",""]
["","","","","","На инстансе 1","","","","","","","","","","",""]
["","","","","","Сделать экспорт проекта с WI, содержащими аттачи, и с включенным параметром includeAttachments, воспользовавшись API - POST​/api​/v2​/projects​/{projectId}​/export","","Проект экспортирован\nПри выгрузке получен архив с именем типа: Test IT - {имя_проекта} - {id_тест-плана} - {datetime}\nКод ответа 200 Successful operation","","","","","","","","",""]
["","","","","","На инстансе 2","","","","","","","","","","",""]
["","","","","","Воспользовавшись API POST​/api​/v2​/projects​/import \nсделать импорт проекта","","Проект импортирован\nКод ответа 204 Successful operation","","","","","","","","",""]
["","","","","","В импортированном проекте открыть библиотеку тестов","","В списке тестов представлены WI, которые были добавлены на инстансе 1\nWI содержат название, описание, системные и пользовательские атрибуты, пред и пост условия, ссылки, общие шаги\nАттачи подгружены и доступны для взаимодействия","","","","","","","","",""]
["28","🚀 Demo -> Импорт/Экспорт -> Импорт/Экспорт проекта через JSON",{"$f":"HYPERLINK(\"https://team-qyro.testit.software/projects/1/tests/28\", \"Импорт/экспорт восстановленных WI на инстанс где они удалены\")","v":null},"Нет","","","","","","","","Средний","Не готов","7/28/2025 09:23:24","Артемизий","0h 5m 0s",""]
["","","","","Перейти на страницу \"Проекты\"","","","Открыта страница \"Проекты\"","","","","","","","","",""]
["","","","","Нажать на кнопку создания проекта","","","Открыто модальное окно создания проекта","","","","","","","","",""]
["","","","","Заполнить все поля","","","Поля заполнены","","","","","","","","",""]
["","","","","Нажать кнопку \"Сохранить\"","","","Модальное окно закрыто. \nОткрыта страница с библиотекой тестовых сценариев. \nВ библиотеке отсутствуют тесты, отображается плейсхолдер с подсказкой","","","","","","","","",""]
["","","","","","Экспортировать проект методом POST /api/v2/projects/id/export\nЭкспорт без аттачей\nТело запроса = \"{}\"","","Получен json файл с проектом","","","","","","","","",""]
["","","","","","На инстансе Б","","","","","","","","","","",""]
["","","","","","Импортировать проект методом POST /api/v2/projects/import","","Создан новый проект с параметрами и содержимым из json файла","","","","","","","","",""]
["","","","","","Удалить все WI проекта","","Все WI проекта перемещены в корзину","","","","","","","","",""]
["","","","","","Повторить импорт того же json файла из шага № 1","","Все WI проекта извлечены из корзины в библиотеку тестов","","","","","","","","",""]
["30","🚀 Demo -> Импорт/Экспорт -> Импорт/Экспорт проекта через JSON",{"$f":"HYPERLINK(\"https://team-qyro.testit.software/projects/1/tests/30\", \"Импорт/экспорт проекта с секциями и вложенными WI\")","v":null},"Нет","","","","","","","","Средний","Не готов","7/28/2025 09:23:24","Артемизий","0h 5m 0s",""]
["","","","","Перейти на страницу \"Проекты\"","","","Открыта страница \"Проекты\"","","","","","","","","",""]
["","","","","Нажать на кнопку создания проекта","","","Открыто модальное окно создания проекта","","","","","","","","",""]
["","","","","Заполнить все поля","","","Поля заполнены","","","","","","","","",""]
["","","","","Нажать кнопку \"Сохранить\"","","","Модальное окно закрыто. \nОткрыта страница с библиотекой тестовых сценариев. \nВ библиотеке отсутствуют тесты, отображается плейсхолдер с подсказкой","","","","","","","","",""]
["","","","","Версии инстансов testit должны быть идентичными","","","","","","","","","","","",""]
["","","","","","В инстансе 1\nПерейти в раздел \"Autotests\"\nОткрыть API Documentation","","Раздел Autests открыт\nОткрыт Swagger","","","","","","","","",""]
["","","","","","Авторизоваться в swagger с private token","","Авторизация прошла","","","","","","","","",""]
["","","","","","Перейти в раздел Projects, метод POST/api/v2/projects/{projectId}/export","","Раздел открыт","","","","","","","","",""]
["","","","","","Заполнить поле project ID соответствующими данными","","ID проекта встален","","","","","","","","",""]
["","","","","","Очистить поле Request body","","Поле не содержит приведенных ниже данных","","","","","","","","",""]
["","","","","","Нажать кнопку Execute","","Статус ответа 200\nСкачать сформированный json file","","","","","","","","",""]
["","","","","","В инстансе 2\nПерейти в раздел \"Autotests\"\nОткрыть API Documentation","","Раздел Autests открыт\nОткрыт Swagger","","","","","","","","",""]
["","","","","","Авторизоваться в swagger с private token","","Авторизация прошла","","","","","","","","",""]
["","","","","","Перейти в раздел Projects, метод POST/api/v2/projects/import","","Раздел открыт","","","","","","","","",""]
["","","","","","Выполнить запрос с файлом сформированный на шаге 7 steps","","Запрос выполнен \nстатус ответа 204","","","","","","","","",""]
["","","","","","Перейти в раздел проекты в инстансе 2, открыть экспортированный проект","","Проект открыт\nИдентичны:\nНаименование и структура секций\nВложенность тест-кейсов в секции\nВ тест кейсах идентичны:\nНазвание, описание, системные и пользовательские атрибуты, пред и пост условия, ссылки и общие шаги. НО значения атрибутов \"Юзер\" сброшены","","","","","","","","",""]